fUSD/lending_fUSD_20241018
["ID","MTS","AMOUNT","RATE_DAILY","PERIOD"]
[340405333,1729215031969,-561.541,0.0001093,2]
[340405334,1729215031978,-150.803,0.0001093,2]
[340405335,1729215031988,-450.0,0.0001093,2]
[340405337,1729215031997,-160.32,0.00010959,2]
[340405338,1729215032007,-250.0,0.00010959,2]
[340405339,1729215032017,-154.91,0.00010959,2]
[340405340,1729215032027,-403.64,0.00010959,2]
[340405341,1729215032036,-356.65,0.00010959,2]
[340405342,1729215032046,-150.0,0.00010959,2]
[340405343,1729215032056,-150.99,0.00010973,2]
[340405344,1729215032065,-499.99,0.00010973,2]
[340405345,1729215032075,-500.0,0.00010973,2]
[340405346,1729215032085,-367.40427202,0.00010973,2]
[340405347,1729215032097,-176.0391725,0.00010998,2]
[340405348,1729215032106,-396.65,0.00010999,2]
[340405349,1729215032116,-798.44,0.00010999,2]
[340405350,1729215032125,-11919.5342218,0.00011,2]
[340405351,1729215032137,-135236.0,0.00011,2]
[340405352,1729215032148,-726.79548145,0.00011,2]
[340405353,1729215032159,-858.16390953,0.00011,2]
[340405354,1729215032170,-2072.33731563,0.00011,2]
[340405355,1729215032230,-355.41834579,0.00011,2]
[340405356,1729215032241,-3989.45713517,0.00011,2]
[340405357,1729215032252,-13495.05892328,0.00011,2]
[340405358,1729215032263,-453.51,0.00011,2]
[340405359,1729215032839,7516.63938815,0.00011,15]
[340405362,1729215037711,-425.4,0.0001093,2]
[340405363,1729215037806,-724.6,0.0001093,2]
[340405364,1729215037816,-4455.1384561,0.00011,2]
[340405365,1729215037827,-3408.6351534,0.00011,2]
[340405366,1729215037838,-724.97184001,0.00011,2]
[340405367,1729215037851,-10729.9312,0.00011,2]
[340405368,1729215037862,-1503.10643675,0.00011,2]
[340405369,1729215037873,-5685.12943716,0.00011,2]
[340405370,1729215037883,-286.98084078,0.00011,2]
[340405371,1729215037894,-276.73584947,0.00011,2]
[340405372,1729215038147,-35210.803881,0.00011,2]
[340405373,1729215038157,-4815.87904808,0.00011,2]
[340405374,1729215038169,-4057.1707922,0.00011,2]
[340405375,1729215038180,-549.26634108,0.00011,2]
[340405384,1729215039647,-23064.68400395,0.00011,2]
[340405385,1729215039660,-4302.89567398,0.00011,2]
[340405386,1729215039671,-8865.05047589,0.00011,2]
[340405387,1729215039683,-449.03088406,0.00011,2]
[340405388,1729215039695,-685.08301683,0.00011,2]
[340405389,1729215039707,-418.43404489,0.00011,2]
[340405390,1729215039719,-21033.57546785,0.00011,2]
[340405391,1729215039730,-6981.09999818,0.00011,2]
[340405392,1729215039848,-1072.66280005,0.00011,2]
[340405393,1729215039859,-412.39,0.00011,2]
[340405394,1729215039869,-94441.16357893,0.00011,2]
[340405395,1729215039950,-1016.48876005,0.00011,2]
[340405396,1729215039961,-337.67707534,0.00011,2]
[340405397,1729215039972,-3319.38039125,0.00011,2]
[340405681,1729215042766,-90007.10787087,0.00011,2]
[340405706,1729215042907,-369.9681725,0.00011,2]
[340405709,1729215042918,-676.26,0.00011,2]
[340405713,1729215042928,-549.20916126,0.00011,2]
[340405715,1729215042939,-6350.18678454,0.00011,2]
[340405728,1729215043118,-6180.65784,0.00011,2]
[340405729,1729215043131,-630.99339394,0.00011,2]
[340405733,1729215045770,-674.5000605,0.00011,2]
[340405734,1729215114112,338.52,8.744e-05,2]
[340405735,1729215147170,3758.31969408,0.00011,15]
[340405736,1729215273092,1879.15984704,0.00011,15]
[340405737,1729215351472,160.69,8.63e-05,2]
[340405738,1729215391295,939.57992352,0.00011,15]
[340405739,1729215401024,185.43,0.00010258,2]
[340405742,1729215511443,469.78996176,0.00011,15]
[340405743,1729215545138,23900.0,0.00010319,2]
[340405744,1729215598706,250.0,0.00010332,2]
[340405745,1729215632620,234.89498088,0.00011,15]
[340405746,1729215687778,337.89,8.382e-05,2]
[340405748,1729215747049,234.89498087,0.00011,15]
[340405749,1729215769722,360.29,0.00010277,2]
[340405750,1729215801414,10000.0,0.00010403,2]
[340405751,1729215819926,250.0,0.00010275,2]
[340405752,1729215864855,150.0,0.00010297,2]
[340405753,1729215864876,150.0,0.00010297,2]
[340405754,1729215864899,150.0,0.00010297,2]
[340405755,1729215864921,150.0,0.00010297,2]
[340405756,1729215864943,150.0,0.00010297,2]
[340405757,1729215864967,244.91206353,0.00010297,2]
[340405758,1729215864993,857.50793647,0.00010297,2]
[340405759,1729215889879,492.813059,0.00025,120]
[340405760,1729215898191,179.09,0.00010275,2]
[340405761,1729215932701,155.54,0.00010283,2]
[340405765,1729216050164,-337.89,0.00010646,2]
[340405766,1729216050185,-1798.25622716,0.00010668,2]
[340405767,1729216050207,-94.48235362,0.00010769,2]
[340405768,1729216051748,23900.0,0.00010272,2]
[340405769,1729216102774,250.0,0.00010317,2]
[340405770,1729216135940,550.0,0.0001,2]
[340405771,1729216185622,319.58,8.388e-05,2]
[340405774,1729216231831,-319.58,0.00010652,2]
[340405775,1729216231841,-1000.0,0.000107,2]
[340405776,1729216231851,-79.21248795,0.00010769,2]
[340405777,1729216231862,-826.30515843,0.00010769,2]
[340405778,1729216231872,-383.61000881,0.000108,2]
[340405779,1729216231884,-224.2755,0.000108,2]
[340405780,1729216231895,-150.0,0.00010898,2]
[340405781,1729216231905,-93.25898556,0.00010899,2]
[340405782,1729216231917,-435.76943337,0.00010899,2]
[340405783,1729216231926,-399.38873654,0.00010899,2]
[340405784,1729216231937,-2333.35212462,0.000109,2]
[340405785,1729216231950,-329.14260328,0.000109,2]
[340405786,1729216231962,-300.0,0.000109,2]
[340405787,1729216231974,-1466.14126311,0.000109,2]
[340405788,1729216231986,-2348.42920899,0.000109,2]
[340405789,1729216231995,-34330.9083,0.000109,2]
[340405790,1729216232005,-59818.4540196,0.000109,2]
[340405791,1729216232018,-460.43123519,0.000109,2]
[340405792,1729216232054,-6485.76551206,0.000109,2]
[340405793,1729216232067,-682.19,0.000109,2]
[340405797,1729216237870,-33119.6434447,0.000109,2]
[340405798,1729216237882,-2926.27464045,0.000109,2]
[340405799,1729216237893,-566.68732454,0.000109,2]
[340405800,1729216238057,-4294.33495034,0.000109,2]
[340405801,1729216238134,-53116.25067312,0.000109,2]
[340405802,1729216238143,-38415.916,0.000109,2]
[340405803,1729216238152,-500.0,0.000109,2]
[340405804,1729216238161,-271.9766,0.000109,2]
[340405805,1729216238171,-326.2236,0.000109,2]
[340405806,1729216238181,-1000.0,0.000109,2]
[340405807,1729216238190,-355.633,0.000109,2]
[340405808,1729216238200,-170.00196563,0.000109,2]
[340405809,1729216238209,-169.80133896,0.000109,2]
[340405810,1729216238218,-7500.0,0.000109,2]
[340405811,1729216238228,-352.44,0.0001093,2]
[340405812,1729216238240,-225.535,0.0001093,2]
[340405813,1729216238252,-809.0,0.0001093,2]
[340405814,1729216238263,-210.352,0.0001093,2]
[340405815,1729216238273,-250.0,0.0001093,2]
[340405816,1729216238284,-150.0,0.0001093,2]
[340405817,1729216238295,-150.0,0.0001093,2]
[340405818,1729216238305,-1084.0,0.0001093,2]
[340405819,1729216238315,-150.0,0.0001093,2]
[340405820,1729216238325,-159.52,0.00010959,2]
[340405821,1729216238334,-322.91,0.00010959,2]
[340405822,1729216238343,-159.65,0.00010959,2]
[340405823,1729216238353,-250.0,0.00010959,2]
[340405824,1729216238363,-499.99,0.0001099,2]
[340405825,1729216238372,-232.2301412,0.0001099,2]
[340405826,1729216238381,-3396.0951141,0.00010994,2]
[340405827,1729216238391,-236.81939152,0.00010994,2]
[340405828,1729216238400,-26760.2251454,0.00010994,2]
[340405829,1729216238410,-2904.43393199,0.00010998,2]
[340405830,1729216238419,-786.0,0.00010999,2]
[340405831,1729216238429,-49390.42538051,0.00011,2]
[340405833,1729216239723,-3504.1443,0.00011,2]
[340405834,1729216239734,-3705.05,0.00011,2]
[340405835,1729216239746,-332.57027765,0.00011,2]
[340405836,1729216239758,-5456.23636126,0.00011,2]
[340405837,1729216239882,-3868.2,0.00011,2]
[340405838,1729216239896,-271060.96136852,0.00011,2]
[340405839,1729216239910,-1458.14473273,0.00011,2]
[340405840,1729216239923,-1008.91552831,0.00011,2]
[340405841,1729216240054,-659.36829085,0.00011,2]
[340405844,1729216240067,-883.29999,0.00011,2]
[340405846,1729216240078,-3097.43992168,0.00011,2]
[340405848,1729216240090,-2716.714189,0.00011,2]
[340405850,1729216240102,-1367.76559331,0.00011,2]
[340405981,1729216242850,-3798.03433909,0.000109,2]
[340405982,1729216242861,-658.84150937,0.000109,2]
[340405983,1729216242873,-265.6000002,0.000109,2]
[340405984,1729216242885,-653.31270692,0.000109,2]
[340405985,1729216243215,-377.11693109,0.000109,2]
[340405986,1729216243228,-1079.31918,0.000109,2]
[340406215,1729216245834,-667.77533333,0.000109,2]
[340406217,1729216245844,-150.0,0.0001093,2]
[340406219,1729216245854,-150.092,0.0001093,2]
[340406221,1729216245863,-237.72,0.00010959,2]
[340406223,1729216245873,-52834.68397015,0.00011,2]
[340406224,1729216245884,-668.30843146,0.00011,2]
[340406225,1729216245895,-343.53915486,0.00011,2]
[340406226,1729216245905,-522.01898272,0.00011,2]
[340406227,1729216245916,-3700.0,0.00011,2]
[340406228,1729216245930,-1310.35088389,0.00011,2]
[340406235,1729216246627,-973.24910627,0.00011,2]
[340406236,1729216246691,-33875.6972726,0.00011,2]
[340406237,1729216246702,-43651.92497901,0.00011,2]
[340406238,1729216246713,-12984.45670346,0.00011,2]
[340406239,1729216246748,-416.0689448,0.00011,2]
[340406240,1729216347025,162.05823601,0.00011,15]
[340406242,1729216519715,1000.0,0.00010351,2]
[340406243,1729216579724,165.47,0.00010353,2]
[340406244,1729216580092,165.47,0.00010359,2]
[340406245,1729216580294,165.47,0.00010366,2]
[340406246,1729216581112,165.47,0.00010372,2]
[340406247,1729216581168,165.47,0.00010379,2]
[340406248,1729216581230,165.47,0.00010385,2]
[340406249,1729216581280,165.47,0.00010392,2]
[340406250,1729216581534,165.47,0.00010398,2]
[340406251,1729216601162,375.5,0.00010327,2]
[340406252,1729216658268,23900.0,0.00010327,2]
[340406253,1729216691531,173.85,0.00010294,2]
[340406254,1729216725928,250.0,0.0001032,2]
[340406255,1729216733160,318.09,8.402e-05,2]
[340406256,1729216808680,257.62,0.00010273,2]
[340406257,1729216815607,-165.47,0.00010405,2]
[340406258,1729216815630,-318.09,0.00010666,2]
[340406259,1729216815651,-190.69,0.00010783,2]
[340406260,1729216815674,-155.37,0.00010786,2]
[340406261,1729216815695,-170.38,0.00010799,2]
[340406262,1729216817639,-960.1998,0.00010799,2]
[340406263,1729216817661,-39.8002,0.00010799,2]
[340406264,1729216818790,-260.1998,0.00010799,2]
[340406265,1729216818810,-150.0,0.00010799,2]
[340406266,1729216818830,-589.8002,0.000108,2]
[340406267,1729216819830,-1000.0,0.000108,2]
[340406268,1729216820902,-1000.0,0.000108,2]
[340406269,1729216821977,-204.1899,0.000108,2]
[340406270,1729216821999,-795.8101,0.000108,2]
[340406271,1729216823029,-1000.0,0.000108,2]
[340406272,1729216824336,-1000.0,0.000108,2]
[340406273,1729216825471,-1000.0,0.000108,2]
[340406274,1729216826647,-1000.0,0.000108,2]
[340406275,1729216878025,-300.0,0.00010799,2]
[340406276,1729216878419,-700.0,0.000108,2]
[340406277,1729216880172,-1000.0,0.000108,2]
[340406278,1729216881808,-1000.0,0.000108,2]
[340406279,1729216883067,-1000.0,0.000108,2]
[340406280,1729216884151,-1000.0,0.000108,2]
[340406281,1729216888197,-200.0,0.000108,2]
[340406282,1729216926165,-300.0,0.00010799,2]
[340406283,1729216926186,-700.0,0.000108,2]
[340406284,1729216927392,-1000.0,0.000108,2]
[340406285,1729216928559,-1000.0,0.000108,2]
[340406286,1729216929624,-417.6897,0.000107,2]
[340406287,1729216929647,-582.3103,0.000108,2]
[340406288,1729216930782,-1000.0,0.000108,2]
[340406289,1729216931975,-1000.0,0.000108,2]
[340406290,1729216933028,-1000.0,0.000108,2]
[340406291,1729216934033,-1000.0,0.000108,2]
[340406292,1729216940086,-700.0,0.000108,2]
[340406293,1729216977012,-366.7529,0.000107,2]
[340406294,1729216977033,-633.2471,0.000108,2]
[340406295,1729216978239,-1000.0,0.000108,2]
[340406296,1729216979327,-1000.0,0.000108,2]
[340406297,1729216983320,-300.0,0.00010799,2]
[340406298,1729216983341,-150.0,0.00010799,2]
[340406299,1729216983362,-50.0,0.000108,2]
[340406300,1729217043156,200.0,0.00010278,2]
[340406301,1729217052104,9960.97,0.00010278,2]
[340406302,1729217068403,250.0,0.00010247,2]
[340406303,1729217094221,183.75,0.00010272,2]
[340406304,1729217155631,200.0,0.00010287,2]
[340406305,1729217194465,23900.0,0.0001013,2]
[340406306,1729217205746,183.0,0.0001013,2]
[340406307,1729217225144,-150.0,0.00010676,2]
[340406308,1729217225163,-150.0,0.00010705,2]
[340406309,1729217225184,-1104.27358122,0.00010799,2]
[340406310,1729217225204,-150.0,0.00010799,2]
[340406311,1729217225224,-300.0,0.00010799,2]
[340406312,1729217225244,-2087.79223574,0.000108,2]
[340406313,1729217239558,250.0,0.00010245,2]
[340406314,1729217312995,1684.94625952,0.00011,15]
[340406315,1729217346455,306.8,8.355e-05,2]
[340406319,1729217367162,257.62,0.00010228,2]
[340406320,1729217427194,1079.50012977,0.00011,15]
[340406324,1729217432100,-258.76851609,0.00010519,2]
[340406325,1729217432111,-231.93194513,0.00010519,2]
[340406326,1729217432121,-150.79770239,0.00010595,2]
[340406327,1729217432131,-490.7004612,0.000106,2]
[340406328,1729217432140,-306.8,0.00010619,2]
[340406329,1729217432151,-1500.0,0.00010627,2]
[340406330,1729217432162,-1500.0,0.00010653,2]
[340406331,1729217432171,-1500.0,0.0001066,2]
[340406332,1729217432181,-826.26969314,0.00010676,2]
[340406333,1729217432193,-673.73030686,0.00010676,2]
[340406334,1729217432203,-490.7004612,0.0001068,2]
[340406335,1729217432213,-414.12680009,0.00010711,2]
[340406336,1729217432225,-1085.87319991,0.00010711,2]
[340406337,1729217432236,-300.0,0.00010717,2]
[340406338,1729217432245,-1500.0,0.00010718,2]
[340406339,1729217432254,-1500.0,0.00010726,2]
[340406340,1729217432263,-1500.0,0.00010729,2]
[340406341,1729217432272,-1500.0,0.00010731,2]
[340406342,1729217432282,-1140.11218381,0.00010756,2]
[340406343,1729217432291,-1500.0,0.00010764,2]
[340406344,1729217432299,-195.40861628,0.00010765,2]
[340406345,1729217432311,-822.5,0.00010765,2]
[340406346,1729217432326,-482.09138372,0.00010765,2]
[340406347,1729217432336,-201.30311628,0.00010779,2]
[340406348,1729217432347,-1298.69688372,0.00010779,2]
[340406349,1729217432357,-518.35668198,0.0001078,2]
[340406350,1729217435504,-319.86038199,0.0001078,2]
[340406353,1729217435518,-190.64221238,0.0001078,2]
[340406354,1729217435528,-133.21940762,0.0001078,2]
[340406355,1729217435539,-1366.78059238,0.0001078,2]
[340406356,1729217435549,-1500.0,0.0001078,2]
[340406357,1729217435559,-1500.0,0.00010781,2]
[340406358,1729217435569,-1500.0,0.00010792,2]
[340406359,1729217435578,-150.0,0.00010799,2]
[340406360,1729217435588,-107679.16156426,0.000108,2]
[340406361,1729217435598,-361.7502,0.000108,2]
[340406362,1729217435607,-2729.6541,0.000108,2]
[340406363,1729217435617,-150.0,0.00010803,2]
[340406364,1729217435626,-1500.0,0.00010807,2]
[340406365,1729217435635,-150.0,0.00010815,2]
[340406366,1729217435645,-1500.0,0.00010815,2]
[340406367,1729217435654,-996.77205123,0.00010815,2]
[340406368,1729217435663,-1500.0,0.00010823,2]
[340406369,1729217435673,-150.0,0.00010832,2]
[340406370,1729217435682,-1500.0,0.00010833,2]
[340406371,1729217435693,-1500.0,0.00010842,2]
[340406372,1729217435703,-1500.0,0.00010843,2]
[340406373,1729217435714,-1500.0,0.00010852,2]
[340406374,1729217435724,-1500.0,0.00010866,2]
[340406375,1729217435734,-284.506,0.000109,2]
[340406376,1729217435744,-24402.7291,0.000109,2]
[340406377,1729217435753,-7500.0,0.000109,2]
[340406378,1729217435763,-182.24097633,0.000109,2]
[340406379,1729217435772,-805.826,0.0001091,2]
[340406380,1729217435782,-150.0,0.0001091,2]
[340406381,1729217435792,-1082.044,0.0001091,2]
[340406382,1729217435801,-150.08,0.0001093,2]
[340406383,1729217435812,-150.0,0.0001093,2]
[340406384,1729217435822,-250.0,0.0001093,2]
[340406385,1729217435831,-678.107,0.0001093,2]
[340406386,1729217435840,-499.99,0.0001093,2]
[340406387,1729217435850,-500.0,0.00010958,2]
[340406388,1729217435859,-500.0,0.00010958,2]
[340406389,1729217435869,-500.0,0.00010958,2]
[340406390,1729217435878,-1599.34,0.00010958,2]
[340406391,1729217435888,-500.0,0.00010958,2]
[340406392,1729217435898,-500.0,0.00010958,2]
[340406393,1729217435908,-500.0,0.00010958,2]
[340406394,1729217435918,-500.0,0.00010958,2]
[340406395,1729217435927,-500.0,0.00010958,2]
[340406396,1729217435936,-500.0,0.00010958,2]
[340406397,1729217435946,-500.0,0.00010958,2]
[340406398,1729217435955,-500.0,0.00010958,2]
[340406399,1729217435967,-500.0,0.00010958,2]
[340406400,1729217435976,-575.42,0.00010958,2]
[340406401,1729217435986,-962.15,0.00010958,2]
[340406402,1729217435995,-500.0,0.00010958,2]
[340406403,1729217436005,-1863.96,0.00010958,2]
[340406404,1729217436014,-160.32,0.00010959,2]
[340406405,1729217436024,-258.32,0.00010959,2]
[340406406,1729217436034,-155.17,0.00010959,2]
[340406407,1729217436044,-250.0,0.00010959,2]
[340406408,1729217436054,-2002.9967642,0.00010994,2]
[340406409,1729217436064,-197.3494928,0.00010994,2]
[340406410,1729217436074,-41658.4539135,0.00010994,2]
[340406411,1729217436085,-234.42900915,0.00010998,2]
[340406412,1729217436095,-500.0,0.00010998,2]
[340406413,1729217436105,-753.25,0.00010999,2]
[340406414,1729217436316,-1000.5218,0.00010999,2]
[340406415,1729217436344,-500.0,0.00010999,2]
[340406416,1729217436353,-500.0,0.00010999,2]
[340406417,1729217436363,-500.0,0.00010999,2]
[340406418,1729217436372,-500.0,0.00010999,2]
[340406419,1729217436382,-500.0,0.00010999,2]
[340406420,1729217436391,-500.0,0.00010999,2]
[340406421,1729217436400,-308.49421158,0.00010999,2]
[340406422,1729217436413,-191.50578842,0.00010999,2]
[340406423,1729217436423,-500.0,0.00010999,2]
[340406424,1729217436433,-500.0,0.00010999,2]
[340406425,1729217436442,-500.0,0.00010999,2]
[340406426,1729217436452,-500.0,0.00010999,2]
[340406427,1729217436462,-500.0,0.00010999,2]
[340406428,1729217436472,-500.0,0.00010999,2]
[340406429,1729217436481,-500.0,0.00010999,2]
[340406430,1729217436490,-507.88727765,0.00010999,2]
[340406431,1729217436500,-500.0,0.00010999,2]
[340406432,1729217436510,-500.0,0.00010999,2]
[340406433,1729217436520,-500.0,0.00010999,2]
[340406434,1729217436530,-500.0,0.00010999,2]
[340406435,1729217436540,-500.0,0.00010999,2]
[340406436,1729217436550,-500.0,0.00010999,2]
[340406437,1729217436559,-1595.07,0.00010999,2]
[340406438,1729217436570,-500.0,0.00010999,2]
[340406439,1729217436579,-500.0,0.00010999,2]
[340406440,1729217436589,-500.0,0.00010999,2]
[340406441,1729217436598,-1280.31,0.00010999,2]
[340406442,1729217436608,-1595.07,0.00010999,2]
[340406443,1729217436618,-501.75255509,0.00010999,2]
[340406444,1729217436628,-500.0,0.00010999,2]
[340406445,1729217436638,-500.0,0.00010999,2]
[340406446,1729217436647,-1280.31,0.00010999,2]
[340406447,1729217436657,-500.0,0.00010999,2]
[340406448,1729217436667,-500.0,0.00010999,2]
[340406449,1729217436677,-1280.31,0.00010999,2]
[340406450,1729217436687,-500.0,0.00010999,2]
[340406451,1729217436697,-500.0,0.00010999,2]
[340406452,1729217436707,-1280.31,0.00010999,2]
[340406453,1729217436718,-623.73086823,0.00010999,2]
[340406454,1729217436728,-500.0,0.00010999,2]
[340406455,1729217436737,-1280.31,0.00010999,2]
[340406456,1729217436746,-892.21,0.00010999,2]
[340406457,1729217436755,-1280.31,0.00010999,2]
[340406458,1729217436765,-500.0,0.00010999,2]
[340406459,1729217436775,-944.41,0.00010999,2]
[340406460,1729217436785,-808.21,0.00010999,2]
[340406461,1729217436794,-892.21,0.00010999,2]
[340406462,1729217436802,-500.0,0.00010999,2]
[340406463,1729217436811,-500.0,0.00010999,2]
[340406464,1729217436820,-1280.31,0.00010999,2]
[340406465,1729217436829,-500.0,0.00010999,2]
[340406466,1729217436839,-808.21,0.00010999,2]
[340406467,1729217436849,-892.21,0.00010999,2]
[340406468,1729217436859,-944.41,0.00010999,2]
[340406469,1729217436868,-500.0,0.00010999,2]
[340406470,1729217436878,-500.0,0.00010999,2]
[340406471,1729217436887,-1280.31,0.00010999,2]
[340406472,1729217436896,-515.41038625,0.00010999,2]
[340406473,1729217436905,-795.22314033,0.00010999,2]
[340406474,1729217437390,-12.98685967,0.00010999,2]
[340406475,1729217437400,-500.0,0.00010999,2]
[340406476,1729217437409,-944.41,0.00010999,2]
[340406477,1729217437419,-892.21,0.00010999,2]
[340406478,1729217437428,-500.0,0.00010999,2]
[340406479,1729217437438,-1280.31,0.00010999,2]
[340406480,1729217437447,-500.0,0.00010999,2]
[340406481,1729217437456,-808.21,0.00010999,2]
[340406482,1729217437466,-892.21,0.00010999,2]
[340406483,1729217437475,-157.65631986,0.00010999,2]
[340406484,1729217437484,-944.41,0.00010999,2]
[340406485,1729217437494,-1280.31,0.00010999,2]
[340406486,1729217437503,-808.21,0.00010999,2]
[340406487,1729217437512,-429.17283105,0.00010999,2]
[340406488,1729217437522,-892.21,0.00010999,2]
[340406489,1729217437531,-1280.31,0.00010999,2]
[340406490,1729217437540,-1595.07,0.00010999,2]
[340406491,1729217437550,-1280.31,0.00010999,2]
[340406492,1729217437559,-892.21,0.00010999,2]
[340406493,1729217437571,-808.21,0.00010999,2]
[340406494,1729217437581,-944.41,0.00010999,2]
[340406495,1729217437592,-1280.31,0.00010999,2]
[340406496,1729217437601,-808.21,0.00010999,2]
[340406497,1729217437611,-944.41,0.00010999,2]
[340406498,1729217437621,-892.21,0.00010999,2]
[340406499,1729217437630,-1280.31,0.00010999,2]
[340406500,1729217437640,-808.21,0.00010999,2]
[340406501,1729217437651,-944.41,0.00010999,2]
[340406502,1729217437662,-892.21,0.00010999,2]
[340406503,1729217437672,-1280.31,0.00010999,2]
[340406504,1729217437681,-350.22440311,0.00010999,2]
[340406505,1729217437695,-457.98559689,0.00010999,2]
[340406506,1729217437704,-944.41,0.00010999,2]
[340406507,1729217437714,-892.21,0.00010999,2]
[340406508,1729217437723,-500.0,0.00010999,2]
[340406509,1729217437733,-1280.31,0.00010999,2]
[340406510,1729217437743,-808.21,0.00010999,2]
[340406511,1729217437752,-944.41,0.00010999,2]
[340406512,1729217437762,-582.79230189,0.00010999,2]
[340406513,1729217437771,-500.0,0.00010999,2]
[340406514,1729217437780,-500.0,0.00010999,2]
[340406515,1729217437790,-892.21,0.00010999,2]
[340406516,1729217437799,-1280.31,0.00010999,2]
[340406517,1729217437808,-1599.34,0.00010999,2]
[340406518,1729217437819,-944.41,0.00010999,2]
[340406519,1729217437829,-808.21,0.00010999,2]
[340406520,1729217437841,-500.0,0.00010999,2]
[340406521,1729217437851,-548.22610469,0.00010999,2]
[340406522,1729217437860,-892.21,0.00010999,2]
[340406523,1729217437869,-1280.31,0.00010999,2]
[340406524,1729217437879,-1599.34,0.00010999,2]
[340406525,1729217437890,-808.21,0.00010999,2]
[340406526,1729217437900,-944.41,0.00010999,2]
[340406527,1729217437909,-500.0,0.00010999,2]
[340406528,1729217437918,-500.0,0.00010999,2]
[340406530,1729217437929,-892.21,0.00010999,2]
[340406531,1729217437938,-500.0,0.00010999,2]
[340406532,1729217437948,-808.21,0.00010999,2]
[340406533,1729217437957,-944.41,0.00010999,2]
[340406534,1729217437968,-1599.34,0.00010999,2]
[340406535,1729217437977,-500.0,0.00010999,2]
[340406536,1729217437987,-500.0,0.00010999,2]
[340406537,1729217437997,-892.21,0.00010999,2]
[340406538,1729217438007,-1280.31,0.00010999,2]
[340406539,1729217438016,-808.21,0.00010999,2]
[340406540,1729217438026,-1599.34,0.00010999,2]
[340406541,1729217438035,-944.41,0.00010999,2]
[340406542,1729217438045,-500.0,0.00010999,2]
[340406543,1729217438055,-500.0,0.00010999,2]
[340406544,1729217438065,-892.21,0.00010999,2]
[340406545,1729217438075,-1599.34,0.00010999,2]
[340406546,1729217438085,-808.21,0.00010999,2]
[340406547,1729217438095,-587.41458671,0.00010999,2]
[340406548,1729217438105,-944.41,0.00010999,2]
[340406549,1729217438115,-500.0,0.00010999,2]
[340406550,1729217438126,-500.0,0.00010999,2]
[340406551,1729217438136,-892.21,0.00010999,2]
[340406552,1729217438145,-808.21,0.00010999,2]
[340406553,1729217438158,-944.41,0.00010999,2]
[340406554,1729217438168,-500.0,0.00010999,2]
[340406555,1729217438177,-892.21,0.00010999,2]
[340406556,1729217438186,-1280.31,0.00010999,2]
[340406557,1729217438196,-808.21,0.00010999,2]
[340406558,1729217438205,-1599.34,0.00010999,2]
[340406559,1729217438215,-944.41,0.00010999,2]
[340406560,1729217438224,-500.0,0.00010999,2]
[340406561,1729217438234,-892.21,0.00010999,2]
[340406562,1729217438244,-1280.31,0.00010999,2]
[340406563,1729217438253,-808.21,0.00010999,2]
[340406564,1729217438263,-500.0,0.00010999,2]
[340406565,1729217438273,-944.41,0.00010999,2]
[340406566,1729217438282,-500.0,0.00010999,2]